[Event "Czech Extraliga 2023-24"]
[Site "Czech Republic"]
[Date "2024.04.06"]
[Round "10.7"]
[White "Svanda, Ondrej"]
[Black "Pulpan, Jakub"]
[Result "1/2-1/2"]
[ECO "E17"]
[WhiteElo "2396"]
[BlackElo "2378"]
[Annotator "RC"]
[PlyCount "95"]
[EventDate "2023.10.14"]
[EventCountry "CZE"]
[SourceTitle "playchess.com"]
[Source "ChessBase"]
[SourceQuality "1"]
[TimeControl "40/5400+30:1800+30"]

1. c4 {[%emt 0:00:02]} e6 {[%emt 0:01:33]} 2. g3 {[%emt 0:00:07]} d5 {[%emt 0:00:42]} 3. Nf3 {[%emt 0:00:14]} Nf6 {[%emt 0:01:13]} 4. Bg2 {[%emt 0:00:01]} Be7 {[%emt 0:03:26]} 5. O-O {[%emt 0:00:10]} O-O {[%emt 0:00:08]} 6. b3 {[%emt 1:32:56]} b6 {[%emt 1:26:28]} 7. d4 {[%emt 0:00:00]} Bb7 {[%emt 0:00:00]} 8. Nc3 {[%emt 0:01:00]} Nbd7 {[%emt 0:00:00]} 9. Bb2 {[%emt 0:00:30]} c5 {[%emt 0:00:00]} 10. Ne1 {[%emt 0:00:00]} Rb8 {[%emt 0:02:00]} 11. cxd5 {[%emt 0:01:00]} Nxd5 {[%emt 0:00:30]} 12. Nxd5 {[%emt 0:00:00]} exd5 {[%emt 0:00:30]} 13. dxc5 {[%emt 0:00:00]} Nxc5 {[%emt 0:00:30]} 14. Nc2 {[%emt 0:01:30]} Ne4 {[%emt 0:00:30]} 15. Ne3 {[%emt 0:00:30]} Bg5 {[%emt 0:00:30]} 16. Ng4 {[%emt 0:00:30]} f5 {[%emt 0:00:30]} 17. Qd4 {[%emt 0:00:30]} Qe7 {[%emt 0:00:30]} 18. Ne5 {[%emt 0:00:30]} Bf6 {[%emt 0:00:30]} 19. Rac1 {[%emt 0:00:30]} Rfe8 {[%emt 0:00:00]} 20. f4 {[%emt 0:00:30]} Rbc8 {[%emt 0:01:00]} 21. Rfd1 {[%emt 0:00:30]} Qe6 {[%emt 0:00:30]} 22. Qa4 {[%emt 0:00:30]} a6 {[%emt 0:00:30]} 23. Bd4 {[%emt 0:00:30]} Nc5 {[%emt 0:00:30]} 24. Qb4 {[%emt 0:00:30]} a5 {[%emt 0:00:30]} 25. Qd2 {[%emt 0:00:00]} Red8 {[%emt 0:00:30]} 26. Qe3 {[%emt 0:01:00]} Re8 {[%emt 0:00:30]} 27. Rc3 {[%emt 0:00:00]} Qd6 {[%emt 0:00:30]} 28. Rdc1 {[%emt 0:01:00]} Ra8 {[%emt 0:00:30]} 29. Bxc5 {[%emt 0:00:00]} bxc5 {[%emt 0:00:00]} 30. Rxc5 {[%emt 0:00:00]} Bxe5 {[%emt 0:00:00]} 31. fxe5 {[%emt 0:01:30]} Rxe5 {[%emt 0:00:00]} 32. Qd4 {[%emt 0:00:30]} Rae8 {[%emt 0:02:00]} 33. Rc7 {[%emt 0:00:00]} R8e7 {[%emt 0:00:30]} 34. Qc5 {[%emt 0:01:00]} Qxc5+ {[%emt 0:00:00]} 35. R1xc5 {[%emt 0:00:30]} a4 {[%emt 0:01:00]} 36. bxa4 {[%emt 0:00:00]} Rxe2 {[%emt 0:00:30]} 37. Rxe7 {[%emt 0:00:21]} Rxe7 {[%emt 0:00:00]} 38. Bxd5+ {[%emt 0:00:05]} Bxd5 {[%emt 0:00:00]} 39. Rxd5 {[%emt 0:01:34]} Re2 {[%emt 0:01:30]} 40. Rxf5 {[%emt 0:00:00]} Rxa2 {[%emt 0:00:00]} 41. Rf4 {[%emt 0:29:43]} h5 {[%emt 0:31:00]} 42. h3 {[%emt 0:01:47]} Kh7 {[%emt 0:00:00]} 43. Kf1 {[%emt 0:00:30]} Ra3 {[%emt 0:00:00]} 44. Kf2 {[%emt 0:00:00]} Ra2+ {[%emt 0:00:00]} 45. Kf3 {[%emt 0:00:00]} Ra3+ {[%emt 0:00:00]} 46. Kf2 {[%emt 0:00:00]} Ra2+ {[%emt 0:00:00]} 47. Kf3 {[%emt 0:00:00]} Ra3+ {[%emt 0:00:00]} 48. Kf2 {[%emt 0:00:00]} 1/2-1/2

[Event "Czech Extraliga 2023-24"]
[Site "Czech Republic"]
[Date "2024.04.06"]
[Round "10.7"]
[White "Jurcik, Martin"]
[Black "Mica, Marek"]
[Result "1/2-1/2"]
[ECO "A13"]
[WhiteElo "2361"]
[BlackElo "2355"]
[Annotator "RC"]
[PlyCount "33"]
[EventDate "2023.10.14"]
[EventCountry "CZE"]
[SourceTitle "playchess.com"]
[Source "ChessBase"]
[SourceQuality "1"]
[TimeControl "40/5400+30:1800+30"]

1. c4 {[%emt 0:00:16]} e6 {[%emt 0:00:26]} 2. e3 {[%emt 0:00:49]} d5 {[%emt 0:00:13]} 3. Nf3 {[%emt 0:00:39]} Nf6 {[%emt 0:00:17]} 4. b3 {[%emt 0:01:01]} Be7 {[%emt 0:00:32]} 5. Bb2 {[%emt 0:01:29]} O-O {[%emt 0:01:00]} 6. d4 {[%emt 0:01:44]} dxc4 {[%emt 0:02:10]} 7. Bxc4 {[%emt 0:01:03]} a6 {[%emt 0:01:11]} 8. O-O {[%emt 0:01:50]} Nbd7 {[%emt 0:01:37]} 9. Nbd2 {[%emt 0:01:55]} c5 {[%emt 0:01:41]} 10. Be2 {[%emt 0:06:18]} b6 {[%emt 0:03:15]} 11. dxc5 {[%emt 0:11:12]} Bxc5 {[%emt 0:00:39]} 12. a3 {[%emt 0:16:48]} a5 {[%emt 0:08:33]} 13. Ne1 {[%emt 0:08:36]} Qe7 {[%emt 0:06:09]} 14. Nd3 {[%emt 0:04:52]} Rd8 {[%emt 0:09:34]} 15. Qc2 {[%emt 0:12:28]} Bb7 {[%emt 0:06:27]} 16. a4 {[%emt 0:02:33]} Rac8 {[%emt 0:02:56]} 17. Nc4 {[%emt 0:01:46]} 1/2-1/2

[Event "Czech Extraliga 2023-24"]
[Site "Czech Republic"]
[Date "2024.04.06"]
[Round "10.7"]
[White "Danada, Tomas"]
[Black "Sorm, Daniel"]
[Result "1-0"]
[ECO "B62"]
[WhiteElo "2195"]
[BlackElo "2273"]
[Annotator "RC"]
[PlyCount "105"]
[EventDate "2023.10.14"]
[EventCountry "CZE"]
[SourceTitle "playchess.com"]
[Source "ChessBase"]
[SourceQuality "1"]
[TimeControl "40/5400+30:1800+30"]

1. e4 {[%emt 0:00:05]} c5 {[%emt 0:00:40]} 2. Nf3 {[%emt 0:00:08]} d6 {[%emt 0:00:27]} 3. Nc3 {[%emt 0:00:13]} Nc6 {[%emt 0:00:22]} 4. d4 {[%emt 0:00:06]} cxd4 {[%emt 0:00:07]} 5. Nxd4 {[%emt 0:00:02]} Nf6 {[%emt 0:00:07]} 6. Bg5 {[%emt 0:00:10]} e6 {[%emt 0:00:16]} 7. Qd3 {[%emt 0:00:08]} Qb6 {[%emt 0:06:38]} 8. Nb3 {[%emt 0:01:35]} Be7 {[%emt 0:01:43]} 9. Be3 {[%emt 0:05:46]} Qc7 {[%emt 0:03:27]} 10. O-O-O {[%emt 0:12:47]} O-O {[%emt 0:09:07]} 11. Bf4 {[%emt 0:09:10]} Rd8 {[%emt 0:12:50]} 12. Be2 {[%emt 0:02:30]} a6 {[%emt 0:01:15]} 13. g4 {[%emt 0:04:08]} b5 {[%emt 0:03:36]} 14. g5 {[%emt 0:00:45]} Ne5 {[%emt 0:00:22]} 15. Qg3 {[%emt 0:03:31]} Nfd7 {[%emt 0:00:21]} 16. a3 {[%emt 0:06:56]} Rb8 {[%emt 0:01:23]} 17. h4 {[%emt 0:06:01]} b4 {[%emt 0:02:10]} 18. axb4 {[%emt 0:00:15]} Rxb4 {[%emt 0:00:08]} 19. h5 {[%emt 0:04:34]} a5 {[%emt 0:01:37]} 20. g6 {[%emt 0:02:35]} fxg6 {[%emt 0:01:03]} 21. hxg6 {[%emt 0:00:38]} hxg6 {[%emt 0:00:25]} 22. Bxe5 {[%emt 0:03:32]} dxe5 {[%emt 0:04:44]} 23. Qxg6 {[%emt 0:09:53]} Nf8 {[%emt 0:00:56]} 24. Qh5 {[%emt 0:01:32]} Rxd1+ {[%emt 0:01:26]} 25. Bxd1 {[%emt 0:00:06]} a4 {[%emt 0:06:28]} 26. Qh8+ {[%emt 0:03:32]} Kf7 {[%emt 0:00:05]} 27. Bh5+ {[%emt 0:00:15]} Kf6 {[%emt 0:01:23]} 28. Rh3 {[%emt 0:02:40]} Bd6 {[%emt 0:06:22]} 29. Rf3+ {[%emt 0:00:41]} Kg5 {[%emt 0:00:06]} 30. Rf7 {[%emt 0:01:31]} Qxf7 {[%emt 0:00:31]} 31. Bxf7 {[%emt 0:00:07]} Kf6 {[%emt 0:00:34]} 32. Nd2 {[%emt 0:07:40]} Kxf7 {[%emt 0:00:22]} 33. Nf3 {[%emt 0:00:08]} Bd7 {[%emt 0:04:13]} 34. Qh5+ {[%emt 0:00:45]} g6 {[%emt 0:02:04]} 35. Nxe5+ {[%emt 0:00:50]} Kg7 {[%emt 0:00:26]} 36. Qg5 {[%emt 0:00:47]} a3 {[%emt 0:00:37]} 37. bxa3 {[%emt 0:01:26]} Rd4 {[%emt 0:01:18]} 38. Kb2 {[%emt 0:01:00]} Be8 {[%emt 0:01:32]} 39. Ng4 {[%emt 0:03:37]} Nh7 {[%emt 0:01:02]} 40. Qe3 {[%emt 0:03:07]} Bc5 {[%emt 0:03:27]} 41. Qh6+ {[%emt 0:30:28]} Kg8 {[%emt 0:32:01]} 42. Ne5 {[%emt 0:02:28]} Rd6 {[%emt 0:05:34]} 43. Nc4 {[%emt 0:00:00]} Rd7 {[%emt 0:00:00]} 44. Nb5 {[%emt 0:00:00]} Rb7 {[%emt 0:00:00]} 45. a4 {[%emt 0:00:00]} Bxf2 {[%emt 0:00:00]} 46. Ncd6 {[%emt 0:00:00]} Bd4+ {[%emt 0:00:00]} 47. Kb3 {[%emt 0:00:00]} Bg7 {[%emt 0:00:00]} 48. Qe3 {[%emt 0:00:00]} Re7 {[%emt 0:00:00]} 49. Nxe8 {[%emt 0:00:00]} Rxe8 {[%emt 0:00:00]} 50. a5 {[%emt 0:00:00]} Ra8 {[%emt 0:00:00]} 51. Qb6 {[%emt 0:00:00]} Nf6 {[%emt 0:00:00]} 52. a6 {[%emt 0:00:00]} Kh7 {[%emt 0:00:00]} 53. Qc6 {[%emt 0:00:00]} 1-0

[Event "Czech Extraliga 2023-24"]
[Site "Czech Republic"]
[Date "2024.04.06"]
[Round "10.8"]
[White "Havelka, Josef"]
[Black "Pisk, Petr"]
[Result "1/2-1/2"]
[ECO "B32"]
[WhiteElo "2380"]
[BlackElo "2283"]
[Annotator "RC"]
[PlyCount "121"]
[EventDate "2023.10.14"]
[EventCountry "CZE"]
[SourceTitle "playchess.com"]
[Source "ChessBase"]
[SourceQuality "1"]
[TimeControl "40/5400+30:1800+30"]

1. e4 {[%emt 0:00:08]} c5 {[%emt 0:00:17]} 2. Nf3 {[%emt 0:00:27]} Nc6 {[%emt 0:00:17]} 3. d4 {[%emt 0:03:36]} cxd4 {[%emt 0:00:13]} 4. Nxd4 {[%emt 0:00:04]} e5 {[%emt 0:00:29]} 5. Nb5 {[%emt 0:01:40]} a6 {[%emt 0:00:32]} 6. Nd6+ {[%emt 0:00:41]} Bxd6 {[%emt 0:00:15]} 7. Qxd6 {[%emt 0:00:05]} Qf6 {[%emt 0:00:29]} 8. Qxf6 {[%emt 0:00:51]} Nxf6 {[%emt 0:00:15]} 9. Nc3 {[%emt 0:01:14]} Nb4 {[%emt 0:00:15]} 10. Bd3 {[%emt 0:01:06]} b5 {[%emt 0:01:50]} 11. Bg5 {[%emt 0:08:53]} Bb7 {[%emt 0:01:47]} 12. f4 {[%emt 0:15:57]} Ng4 {[%emt 0:04:31]} 13. fxe5 {[%emt 0:08:17]} Nxe5 {[%emt 0:05:55]} 14. O-O-O {[%emt 0:06:53]} Rc8 {[%emt 0:13:00]} 15. Kb1 {[%emt 0:10:49]} Nbxd3 {[%emt 0:28:55]} 16. cxd3 {[%emt 0:00:07]} O-O {[%emt 0:09:43]} 17. Rhe1 {[%emt 0:10:21]} f5 {[%emt 0:08:36]} 18. Be7 {[%emt 0:12:22]} Rf7 {[%emt 0:01:25]} 19. Bd6 {[%emt 0:01:44]} Ng6 {[%emt 0:01:36]} 20. Rd2 {[%emt 0:01:11]} Re8 {[%emt 0:06:24]} 21. Rde2 {[%emt 0:07:05]} fxe4 {[%emt 0:01:03]} 22. Nxe4 {[%emt 0:00:09]} Bxe4 {[%emt 0:01:49]} 23. dxe4 {[%emt 0:00:50]} Ne5 {[%emt 0:01:06]} 24. Rd1 {[%emt 0:01:58]} Re6 {[%emt 0:05:03]} 25. b3 {[%emt 0:00:28]} h6 {[%emt 0:00:40]} 26. Kb2 {[%emt 0:01:50]} Nc6 {[%emt 0:00:49]} 27. Kc3 {[%emt 0:00:38]} Re8 {[%emt 0:01:17]} 28. Bg3 {[%emt 0:01:20]} Rfe7 {[%emt 0:01:07]} 29. Rd6 {[%emt 0:01:09]} Rc8 {[%emt 0:02:38]} 30. Kb2 {[%emt 0:00:54]} Rce8 {[%emt 0:00:23]} 31. Red2 {[%emt 0:00:59]} Rxe4 {[%emt 0:00:41]} 32. Rxd7 {[%emt 0:00:08]} Re2 {[%emt 0:01:47]} 33. R7d6 {[%emt 0:00:36]} Rxd2+ {[%emt 0:00:29]} 34. Rxd2 {[%emt 0:00:04]} Re6 {[%emt 0:00:15]} 35. Kc3 {[%emt 0:01:48]} Re3+ {[%emt 0:01:18]} 36. Kc2 {[%emt 0:00:25]} Kf7 {[%emt 0:00:32]} 37. Rd7+ {[%emt 0:00:49]} Re7 {[%emt 0:00:11]} 38. Rd2 {[%emt 0:01:04]} Re3 {[%emt 0:00:32]} 39. Kb2 {[%emt 0:00:42]} g5 {[%emt 0:00:52]} 40. Rc2 {[%emt 0:00:26]} Re6 {[%emt 0:00:32]} 41. Kc3 {[%emt 0:09:36]} Kg6 {[%emt 0:09:36]} 42. Rd2 {[%emt 0:02:35]} Re3+ {[%emt 0:06:17]} 43. Kb2 {[%emt 0:01:04]} Re6 {[%emt 0:05:38]} 44. Kc3 {[%emt 0:01:06]} h5 {[%emt 0:00:28]} 45. Rd6 {[%emt 0:09:54]} Rxd6 {[%emt 0:05:06]} 46. Bxd6 {[%emt 0:00:03]} Kf5 {[%emt 0:00:14]} 47. Kd3 {[%emt 0:02:29]} Ke6 {[%emt 0:00:32]} 48. Bf8 {[%emt 0:00:54]} Kd5 {[%emt 0:00:05]} 49. h3 {[%emt 0:01:24]} Ke5 {[%emt 0:02:54]} 50. Bc5 {[%emt 0:01:56]} Kd5 {[%emt 0:03:02]} 51. Bf8 {[%emt 0:00:57]} Ne5+ {[%emt 0:01:03]} 52. Ke3 {[%emt 0:00:12]} Ng6 {[%emt 0:00:51]} 53. Bh6 {[%emt 0:03:03]} g4 {[%emt 0:00:05]} 54. hxg4 {[%emt 0:00:52]} hxg4 {[%emt 0:00:04]} 55. g3 {[%emt 0:01:04]} a5 {[%emt 0:01:20]} 56. Bg7 {[%emt 0:00:47]} a4 {[%emt 0:00:09]} 57. Bc3 {[%emt 0:00:36]} axb3 {[%emt 0:01:10]} 58. axb3 {[%emt 0:00:05]} Ne5 {[%emt 0:00:35]} 59. Bxe5 {[%emt 0:00:37]} Kxe5 {[%emt 0:00:01]} 60. b4 {[%emt 0:00:05]} Kd5 {[%emt 0:00:04]} 61. Kd3 {[%emt 0:00:07]} 1/2-1/2

[Event "Czech Extraliga 2023-24"]
[Site "Czech Republic"]
[Date "2024.04.06"]
[Round "10.8"]
[White "Cerveny, Martin"]
[Black "Hollan, Martin"]
[Result "1/2-1/2"]
[ECO "E61"]
[WhiteElo "2367"]
[BlackElo "2345"]
[Annotator "RC"]
[PlyCount "98"]
[EventDate "2023.10.14"]
[EventCountry "CZE"]
[SourceTitle "playchess.com"]
[Source "ChessBase"]
[SourceQuality "1"]
[TimeControl "40/5400+30:1800+30"]

1. d4 {[%emt 0:00:05]} Nf6 {[%emt 0:00:10]} 2. c4 {[%emt 0:00:42]} g6 {[%emt 0:00:06]} 3. Nc3 {[%emt 0:00:11]} Bg7 {[%emt 0:00:07]} 4. Bg5 {[%emt 0:01:41]} O-O {[%emt 0:00:13]} 5. Qd2 {[%emt 0:02:36]} d6 {[%emt 0:04:30]} 6. Bh6 {[%emt 0:03:16]} c5 {[%emt 0:03:25]} 7. Bxg7 {[%emt 0:02:34]} Kxg7 {[%emt 0:00:55]} 8. e3 {[%emt 0:00:42]} cxd4 {[%emt 0:00:16]} 9. Qxd4 {[%emt 0:00:43]} Nc6 {[%emt 0:00:15]} 10. Qd2 {[%emt 0:00:14]} Be6 {[%emt 0:00:07]} 11. Nf3 {[%emt 0:02:41]} Rc8 {[%emt 0:01:57]} 12. Be2 {[%emt 0:03:07]} Qa5 {[%emt 0:01:35]} 13. Rd1 {[%emt 0:16:18]} Rfd8 {[%emt 0:00:53]} 14. O-O {[%emt 0:09:13]} d5 {[%emt 0:04:47]} 15. cxd5 {[%emt 0:01:57]} Nxd5 {[%emt 0:00:30]} 16. Nxd5 {[%emt 0:05:21]} Qxd2 {[%emt 0:01:18]} 17. Rxd2 {[%emt 0:00:07]} Bxd5 {[%emt 0:01:14]} 18. a3 {[%emt 0:01:19]} Bxf3 {[%emt 0:00:40]} 19. Rxd8 {[%emt 0:04:12]} Rxd8 {[%emt 0:00:21]} 20. Bxf3 {[%emt 0:00:09]} Ne5 {[%emt 0:00:13]} 21. Rc1 {[%emt 0:01:14]} Rd2 {[%emt 0:02:01]} 22. b4 {[%emt 0:05:17]} b6 {[%emt 0:04:16]} 23. h3 {[%emt 0:06:30]} Nxf3+ {[%emt 0:08:02]} 24. gxf3 {[%emt 0:00:30]} Rd3 {[%emt 0:00:13]} 25. Rc7 {[%emt 0:03:15]} Rxa3 {[%emt 0:00:09]} 26. Rxe7 {[%emt 0:00:07]} Ra4 {[%emt 0:05:19]} 27. b5 {[%emt 0:05:29]} Ra5 {[%emt 0:00:54]} 28. f4 {[%emt 0:00:18]} Kf6 {[%emt 0:03:32]} 29. Re5 {[%emt 0:01:33]} a6 {[%emt 0:03:17]} 30. bxa6 {[%emt 0:00:44]} Rxa6 {[%emt 0:01:23]} 31. Kg2 {[%emt 0:00:05]} Ra7 {[%emt 0:01:06]} 32. Kf3 {[%emt 0:00:29]} Rb7 {[%emt 0:00:29]} 33. Rb5 {[%emt 0:03:31]} Ke6 {[%emt 0:00:18]} 34. Ke4 {[%emt 0:05:23]} f5+ {[%emt 0:03:40]} 35. Kd4 {[%emt 0:00:56]} Rd7+ {[%emt 0:01:18]} 36. Kc3 {[%emt 0:00:14]} Rd6 {[%emt 0:00:07]} 37. f3 {[%emt 0:00:24]} Kd7 {[%emt 0:06:09]} 38. h4 {[%emt 0:01:07]} Kc6 {[%emt 0:04:49]} 39. Re5 {[%emt 0:00:18]} Kd7 {[%emt 0:00:15]} 40. Rb5 {[%emt 0:03:14]} Kc6 {[%emt 0:05:08]} 41. Re5 {[%emt 0:34:16]} Kd7 {[%emt 0:33:26]} 42. Kc4 {[%emt 0:00:00]} Rc6+ {[%emt 0:00:00]} 43. Kb5 {[%emt 0:00:00]} Rc1 {[%emt 0:00:00]} 44. Kxb6 {[%emt 0:00:00]} Rh1 {[%emt 0:00:00]} 45. Kc5 {[%emt 0:00:00]} Rxh4 {[%emt 0:00:00]} 46. Rd5+ {[%emt 0:00:00]} Ke7 {[%emt 0:00:00]} 47. Kd4 {[%emt 0:00:00]} Rh3 {[%emt 0:00:00]} 48. Ra5 {[%emt 0:00:00]} Rxf3 49. Ra7+ {[%emt 0:00:00]} Kf6 1/2-1/2

[Event "Czech Extraliga 2023-24"]
[Site "Czech Republic"]
[Date "2024.04.06"]
[Round "10.8"]
[White "Pachmann, Ales"]
[Black "Vrana, Jan"]
[Result "0-1"]
[ECO "C68"]
[WhiteElo "2306"]
[BlackElo "2338"]
[Annotator "RC"]
[PlyCount "84"]
[EventDate "2023.10.14"]
[EventCountry "CZE"]
[SourceTitle "playchess.com"]
[Source "ChessBase"]
[SourceQuality "1"]
[TimeControl "40/5400+30:1800+30"]

1. e4 e5 2. Nf3 Nc6 3. Bb5 a6 4. Bxc6 dxc6 5. O-O Bd6 6. d4 exd4 7. Qxd4 f6 8. e5 fxe5 9. Nxe5 Qf6 10. Re1 Ne7 11. Nd2 O-O 12. Ndf3 h6 13. Bd2 c5 14. Qc3 Be6 15. Qe3 Rae8 16. Bc3 Nd5 17. Qe4 Nxc3 18. bxc3 c6 19. c4 Bf5 20. Qf4 Bxc2 21. Qxf6 Rxf6 22. Nxc6 Rxe1+ 23. Nxe1 Be4 24. Na5 Be5 25. Rd1 Bd4 26. Nf3 Bxf3 27. gxf3 Rxf3 28. Nxb7 Rc3 29. Nd6 Rc2 30. Nf5 Bxf2+ 31. Kf1 Rxa2 32. Rd7 Bd4 33. Nxd4 cxd4 34. h4 Kh7 35. Rxd4 a5 36. Ke1 a4 37. c5 a3 38. Ra4 Kg6 39. Kd1 Kf6 40. c6 Ke7 41. Rd4 Rh2 42. Rd7+ Ke6 0-1

[Event "Czech Extraliga 2023-24"]
[Site "Czech Republic"]
[Date "2024.04.06"]
[Round "10.8"]
[White "Rabatin, Jakub"]
[Black "Simek, Petr"]
[Result "1-0"]
[ECO "B91"]
[WhiteElo "2293"]
[BlackElo "2301"]
[Annotator "RC"]
[PlyCount "73"]
[EventDate "2023.10.14"]
[EventCountry "CZE"]
[SourceTitle "playchess.com"]
[Source "ChessBase"]
[SourceQuality "1"]
[TimeControl "40/5400+30:1800+30"]

1. e4 {[%emt 0:00:03]} c5 {[%emt 0:00:05]} 2. Nf3 {[%emt 0:00:04]} d6 {[%emt 0:00:05]} 3. d4 {[%emt 0:00:04]} cxd4 {[%emt 0:00:05]} 4. Nxd4 {[%emt 0:00:04]} Nf6 {[%emt 0:00:06]} 5. Nc3 {[%emt 0:00:04]} a6 {[%emt 0:00:08]} 6. g3 {[%emt 0:09:12]} e5 {[%emt 0:16:18]} 7. Nde2 {[%emt 0:01:34]} Nbd7 {[%emt 0:00:18]} 8. Bg2 {[%emt 0:02:58]} b5 {[%emt 0:01:44]} 9. O-O {[%emt 0:09:05]} Bb7 {[%emt 0:01:15]} 10. h3 {[%emt 0:06:15]} h5 {[%emt 0:02:26]} 11. a4 {[%emt 0:22:16]} b4 {[%emt 0:38:40]} 12. Nd5 {[%emt 0:00:05]} Nxd5 {[%emt 0:02:05]} 13. exd5 {[%emt 0:00:01]} Qa5 {[%emt 0:00:09]} 14. c3 {[%emt 0:04:03]} bxc3 {[%emt 0:01:24]} 15. Nxc3 {[%emt 0:00:28]} Be7 {[%emt 0:01:38]} 16. Bd2 {[%emt 0:09:01]} f5 {[%emt 0:02:43]} 17. Qc2 {[%emt 0:19:29]} O-O {[%emt 0:00:19]} 18. Nb5 {[%emt 0:02:58]} Qb6 {[%emt 0:01:09]} 19. Qc7 {[%emt 0:01:49]} Qxc7 {[%emt 0:05:46]} 20. Nxc7 {[%emt 0:00:02]} Rac8 {[%emt 0:00:13]} 21. Ne6 {[%emt 0:00:38]} Rfe8 {[%emt 0:00:20]} 22. Ba5 {[%emt 0:02:40]} Kf7 {[%emt 0:05:30]} 23. Rfc1 {[%emt 0:02:53]} Nf6 {[%emt 0:01:35]} 24. Nc7 {[%emt 0:00:31]} Rh8 {[%emt 0:00:32]} 25. b4 {[%emt 0:02:28]} Bd8 {[%emt 0:02:45]} 26. b5 {[%emt 0:01:15]} axb5 {[%emt 0:01:56]} 27. Nxb5 {[%emt 0:00:40]} Be7 {[%emt 0:06:10]} 28. Bb4 {[%emt 0:00:32]} Rxc1+ {[%emt 0:01:19]} 29. Rxc1 {[%emt 0:00:01]} Bxd5 {[%emt 0:00:07]} 30. Bxd6 {[%emt 0:01:20]} Bxd6 {[%emt 0:03:24]} 31. Nxd6+ {[%emt 0:00:06]} Ke6 {[%emt 0:00:03]} 32. Nb5 {[%emt 0:01:28]} Bxg2 {[%emt 0:03:19]} 33. Kxg2 {[%emt 0:00:03]} Nd5 {[%emt 0:02:33]} 34. Rc6+ {[%emt 0:01:02]} Ke7 {[%emt 0:00:16]} 35. a5 {[%emt 0:00:50]} Rb8 {[%emt 0:00:49]} 36. Rc5 {[%emt 0:00:10]} Ke6 {[%emt 0:00:04]} 37. a6 {[%emt 0:00:19]} 1-0

[Event "Czech Extraliga 2023-24"]
[Site "Czech Republic"]
[Date "2024.04.06"]
[Round "10.8"]
[White "Liska, Jiri"]
[Black "Gnida, Patrik"]
[Result "1/2-1/2"]
[ECO "D21"]
[WhiteElo "2285"]
[BlackElo "2216"]
[Annotator "RC"]
[PlyCount "73"]
[EventDate "2023.10.14"]
[EventCountry "CZE"]
[SourceTitle "playchess.com"]
[Source "ChessBase"]
[SourceQuality "1"]
[TimeControl "40/5400+30:1800+30"]

1. Nf3 {[%emt 0:00:06]} d5 {[%emt 0:00:00]} 2. d4 {[%emt 0:00:15]} c5 {[%emt 0:00:03]} 3. c4 {[%emt 0:02:41]} dxc4 {[%emt 0:11:21]} 4. Nc3 {[%emt 0:09:21]} a6 {[%emt 0:09:59]} 5. dxc5 {[%emt 0:10:09]} Qxd1+ {[%emt 0:00:47]} 6. Kxd1 {[%emt 0:00:12]} e6 {[%emt 0:05:31]} 7. Na4 {[%emt 0:05:28]} Nd7 {[%emt 0:09:42]} 8. Be3 {[%emt 0:01:46]} Ngf6 {[%emt 0:00:52]} 9. Rc1 {[%emt 0:08:36]} Ng4 {[%emt 0:02:16]} 10. Rxc4 {[%emt 0:00:15]} Nxe3+ {[%emt 0:00:03]} 11. fxe3 {[%emt 0:00:04]} b5 {[%emt 0:04:02]} 12. cxb6 {[%emt 0:00:27]} Bb7 {[%emt 0:00:01]} 13. e4 {[%emt 0:18:44]} Bd6 {[%emt 0:11:31]} 14. e3 {[%emt 0:01:47]} Ke7 {[%emt 0:00:21]} 15. Bd3 {[%emt 0:01:30]} Rhc8 {[%emt 0:01:12]} 16. Rxc8 {[%emt 0:01:23]} Rxc8 {[%emt 0:00:34]} 17. Ke2 {[%emt 0:01:11]} Nc5 {[%emt 0:08:45]} 18. Nxc5 {[%emt 0:06:41]} Bxc5 {[%emt 0:00:44]} 19. Rc1 {[%emt 0:00:56]} Bxb6 {[%emt 0:00:03]} 20. Rxc8 {[%emt 0:00:32]} Bxc8 {[%emt 0:00:04]} 21. h3 {[%emt 0:03:23]} Bb7 {[%emt 0:00:11]} 22. b4 {[%emt 0:03:40]} h5 {[%emt 0:03:20]} 23. Nd4 {[%emt 0:02:35]} a5 {[%emt 0:02:39]} 24. bxa5 {[%emt 0:04:11]} Bxa5 {[%emt 0:00:02]} 25. Nb3 {[%emt 0:00:35]} Bb6 {[%emt 0:00:10]} 26. a4 {[%emt 0:01:08]} f5 {[%emt 0:11:58]} 27. a5 {[%emt 0:03:19]} fxe4 {[%emt 0:01:40]} 28. Bxe4 {[%emt 0:05:32]} Bxe4 {[%emt 0:02:38]} 29. axb6 {[%emt 0:00:02]} Bxg2 {[%emt 0:03:04]} 30. Nc5 {[%emt 0:03:18]} Kd6 {[%emt 0:03:23]} 31. b7 {[%emt 0:00:15]} Kc7 {[%emt 0:00:08]} 32. Nxe6+ {[%emt 0:02:27]} Kxb7 {[%emt 0:00:01]} 33. Nf4 {[%emt 0:00:08]} Be4 {[%emt 0:02:58]} 34. h4 {[%emt 0:03:08]} g6 {[%emt 0:00:44]} 35. Ne6 {[%emt 0:01:06]} Kc6 {[%emt 0:00:35]} 36. Ng5 {[%emt 0:00:15]} Kd5 {[%emt 0:00:33]} 37. Kf2 {[%emt 0:00:49]} 1/2-1/2

[Event "Czech Extraliga 2023-24"]
[Site "Czech Republic"]
[Date "2024.04.07"]
[Round "11.1"]
[White "Harikrishna, Pentala"]
[Black "Pechac, Jergus"]
[Result "1/2-1/2"]
[ECO "C60"]
[WhiteElo "2701"]
[BlackElo "2586"]
[Annotator "TA"]
[PlyCount "54"]
[EventDate "2023.10.14"]
[EventCountry "CZE"]
[SourceTitle "playchess.com"]
[Source "ChessBase"]
[SourceQuality "1"]
[TimeControl "40/5400+30:1800+30"]

{[%evp 11,54,28,18,17,12,24,10,15,28,0,0,0,6,0,0,0,7,8,12,8,13,5,3,21,6,-5,0,-92,-100,-105,-134,-127,-120,-123,-129,-125,-143,-129,-143,-129,-98,-110,0,0,0]} 1. e4 {[%emt 0:00:07]} e5 {[%emt 0:00:07]} 2. Nf3 {[%emt 0:00:21]} Nc6 {[%emt 0:00:06]} 3. Bb5 {[%emt 0:00:32]} Nge7 {[%emt 0:00:07]} 4. d4 {[%emt 0:01:58]} exd4 {[%emt 0:00:08]} 5. Nxd4 {[%emt 0:00:16]} Nxd4 {[%emt 0:00:06]} 6. Qxd4 {[%emt 0:00:08]} Nc6 {[%emt 0:00:04]} 7. Qe3 {[%emt 0:00:16]} Be7 {[%emt 0:00:06]} 8. O-O {[%emt 0:00:48]} O-O {[%emt 0:00:06]} 9. Nc3 {[%emt 0:01:01]} Re8 {[%emt 0:00:08]} 10. Rd1 {[%emt 0:00:57]} Ne5 {[%emt 0:00:06]} 11. Nd5 {[%emt 0:05:12]} Bh4 {[%emt 0:18:48]} 12. g3 {[%emt 0:18:40]} c6 {[%emt 0:02:17]} 13. gxh4 {[%emt 0:00:43]} cxd5 {[%emt 0:15:08]} 14. Rxd5 {[%emt 0:07:42]} Qxh4 {[%emt 0:00:33] [#] White must now prevent ...Re6.} 15. Qf4 {[%emt 0:09:30]} Qe7 {[%emt 0:09:51]} 16. Qg3 {[%emt 0:09:03]} b6 {[%emt 0:03:15]} 17. Bf4 {[%emt 0:02:54] A strong pair of Bishops.} Ng6 {[%emt 0:00:20]} 18. Re1 {[%emt 0:02:55]} Bb7 {[%emt 0:04:51]} 19. Rxd7 {[%emt 0:05:36]} (19. Rd6 $1 $11) 19... Qb4 $36 {[%emt 0:00:14][%mdl 2048] Black is on the roll.} 20. c3 {[%emt 0:02:51]} Qxb5 {[%emt 0:00:44]} 21. Rxb7 {[%emt 0:00:07]} Qxb2 {[%emt 0:01:19]} 22. Qf3 {[%emt 0:06:14]} Qxa2 {[%emt 0:01:34][%cal Oa2d5]} 23. Bg3 {[%emt 0:00:06]} Ne5 {[%emt 0:12:57]} 24. Bxe5 {[%emt 0:08:40]} Rxe5 {[%emt 0:00:05]} 25. Qf4 {[%emt 0:00:25] Against h6} f6 {[%emt 0:04:47]} 26. Kh1 {[%emt 0:04:24] [#] Hoping for Rg1.} Qe6 {[%emt 0:16:13]} ({Better is} 26... Qa6 $17 27. Rd7 Qa3) 27. Rg1 $11 {[%emt 0:02:07]} Rg5 $1 {[%emt 0:03:18] Weighted Error Value: White=0.06 (flawless) /Black=0.09 (flawless) .  Mistake:       	White=1     	Black=1      OK:         	White=10    	Black=14     Best:        	White=1     	Black=1      Strong:       	---       	Black=1} (27... Rxe4 28. Qh6 (28. Rbxg7+ Kf8 $18) 28... Rg4 29. Rxg7+ Kf8 30. Rxh7+ (30. R1xg4 Qd5+ 31. Kg1 Qd1+ 32. Kg2 Qxg4+ 33. Rxg4+ Kf7 34. Qxh7+ Ke6 35. Re4+ Kd6) 30... Ke8 31. Qh5+ Kf8 32. Rxg4) 1/2-1/2